bitfinex/quotes_BTCUSD_20241120
["timestamp","ask_amount","ask_price","bid_price","bid_amount"]
[1732126230780,0.03171117,94125.0,94108.0,0.10711512]
[1732126230994,0.0766739,94124.0,94108.0,0.10711512]
[1732126231200,0.0766739,94123.0,94108.0,0.10711512]
[1732126231448,0.0766739,94123.0,94104.0,0.01]
[1732126231449,0.0766739,94122.0,94104.0,0.01]
[1732126231664,0.03171117,94114.0,94088.0,0.01]
[1732126231887,0.03171117,94108.0,94090.0,0.01]
[1732126232121,0.03171117,94104.0,94101.0,0.002525]
[1732126232357,0.04496273,94103.0,94101.0,0.002525]
[1732126232594,0.04496273,94102.0,94101.0,0.002525]
[1732126233081,0.04496273,94102.0,94101.0,0.21164012]
[1732126233317,0.03171117,94102.0,94101.0,0.22164012]
[1732126234006,0.03171117,94102.0,94101.0,0.21964012]
[1732126234245,0.03171117,94102.0,94101.0,0.22164012]
[1732126234457,0.03171117,94119.0,94110.0,0.002]
[1732126234713,9e-07,94127.0,94122.0,0.002]
[1732126234944,0.04495175,94126.0,94122.0,0.10911512]
[1732126235172,9e-07,94127.0,94125.0,0.00184883]
[1732126235425,9e-07,94127.0,94123.0,0.10963623]
[1732126235426,9e-07,94127.0,94126.0,0.10896395]
[1732126235643,0.04494806,94127.0,94126.0,0.1114722]
[1732126237037,0.03169471,94127.0,94126.0,0.1114722]
[1732126237253,0.06475559,94127.0,94126.0,0.1114722]
[1732126238996,0.0964494,94127.0,94126.0,0.1114722]
[1732126239214,0.06475559,94127.0,94126.0,0.1114722]
[1732126239423,0.09645728,94127.0,94126.0,0.1114722]
[1732126240056,0.06475559,94127.0,94126.0,0.00250825]
[1732126240500,0.06475559,94127.0,94114.0,0.01]
[1732126240737,0.0317096,94121.0,94116.0,0.1]
[1732126240985,0.0317096,94121.0,94097.0,0.0017102]
[1732126240986,0.06475469,94120.0,94097.0,0.0017102]
[1732126241207,0.0767,94125.0,94097.0,0.0017102]
[1732126241208,0.06475469,94119.0,94117.0,0.00250974]
[1732126241450,0.15946826,94118.0,94097.0,0.0017102]
[1732126241893,0.03171112,94107.0,94097.0,0.00355903]
[1732126241896,0.03171112,94106.0,94102.0,0.00241068]
[1732126242116,0.09646581,94105.0,94102.0,0.00241068]
[1732126242329,0.06475469,94104.0,94102.0,0.00241068]
[1732126242564,0.06475469,94103.0,94102.0,0.00241068]
[1732126243037,0.15946826,94103.0,94102.0,0.00241068]
[1732126243252,0.06475469,94103.0,94102.0,0.11137463]
[1732126243541,0.06475469,94103.0,94102.0,0.1095258]
[1732126243770,0.05150244,94103.0,94102.0,0.23137463]
[1732126244033,0.05150244,94103.0,94102.0,0.2295258]
[1732126244245,0.05150244,94103.0,94102.0,0.23137463]
[1732126244246,4.4e-07,94103.0,94102.0,0.23137463]
[1732126244503,9e-07,94127.0,94122.0,0.01]
[1732126244740,0.01325232,94126.0,94124.0,0.1]
[1732126244953,9e-07,94127.0,94125.0,0.10711512]
[1732126245165,9e-07,94127.0,94125.0,0.10951745]
[1732126245617,9e-07,94127.0,94126.0,0.11]
[1732126245824,9e-07,94127.0,94126.0,0.21711512]
[1732126246286,9e-07,94127.0,94126.0,0.21951745]
[1732126246504,9e-07,94127.0,94126.0,0.22951745]
[1732126247181,9e-07,94127.0,94126.0,0.23136628]
[1732126247644,9e-07,94127.0,94126.0,0.10951745]
[1732126247862,9e-07,94127.0,94126.0,0.00240233]
[1732126248310,9e-07,94127.0,94115.0,0.00184883]
[1732126248548,9e-07,94127.0,94123.0,0.0017114]
[1732126249529,9e-07,94127.0,94124.0,0.10949583]
[1732126249999,9e-07,94127.0,94126.0,0.00184883]
[1732126250210,9e-07,94127.0,94126.0,0.10711512]
[1732126250426,9e-07,94127.0,94126.0,0.10949707]
[1732126250691,9e-07,94127.0,94126.0,0.2313459]
[1732126254087,9e-07,94127.0,94126.0,0.00238195]
[1732126254564,9e-07,94127.0,94123.0,0.0017114]
[1732126254771,9e-07,94127.0,94126.0,0.00235146]
[1732126255009,9e-07,94127.0,94123.0,0.0017114]
[1732126255217,9e-07,94127.0,94126.0,0.00235146]
[1732126255427,9e-07,94127.0,94125.0,0.00184883]
[1732126255677,9e-07,94127.0,94126.0,0.00235146]
[1732126256083,9e-07,94127.0,94126.0,0.10946658]
[1732126256314,9e-07,94127.0,94126.0,0.11946658]
[1732126256525,9e-07,94127.0,94126.0,0.23052889]
[1732126256758,9e-07,94127.0,94126.0,0.22946658]
[1732126257481,9e-07,94127.0,94126.0,0.22131541]
[1732126257720,9e-07,94127.0,94126.0,0.21131541]
[1732126257958,9e-07,94127.0,94126.0,0.22131541]
[1732126258822,9e-07,94127.0,94126.0,0.21131541]
[1732126259276,9e-07,94127.0,94126.0,0.11131541]
[1732126259763,9e-07,94127.0,94126.0,0.00420029]
[1732126259971,9e-07,94127.0,94126.0,0.00235146]
[1732126260441,9e-07,94127.0,94123.0,0.0017114]
[1732126260709,9e-07,94127.0,94126.0,0.00235433]
[1732126260962,9e-07,94127.0,94126.0,0.00184883]
[1732126261190,9e-07,94127.0,94125.0,0.00184883]
[1732126261434,0.01713353,94127.0,94123.0,0.0017114]
[1732126261675,9e-07,94127.0,94123.0,0.0017114]
[1732126262123,0.01980684,94126.0,94123.0,0.0017114]
[1732126262334,0.01980684,94125.0,94123.0,0.0017114]
[1732126262550,0.01980684,94124.0,94123.0,0.0017114]
[1732126262999,9e-07,94127.0,94123.0,0.0017114]
[1732126263461,0.01981036,94126.0,94123.0,0.0017114]
[1732126263893,0.01981036,94125.0,94123.0,0.0017114]
[1732126264142,0.01981036,94124.0,94123.0,0.0017114]
[1732126264600,9e-07,94127.0,94123.0,0.0017114]
[1732126264867,0.01980977,94126.0,94123.0,0.0017114]
[1732126265107,9e-07,94127.0,94123.0,0.0017114]
[1732126265764,9e-07,94127.0,94125.0,0.00184883]
[1732126266208,9e-07,94127.0,94126.0,0.00184883]
[1732126267102,9e-07,94127.0,94125.0,0.00184883]
[1732126267385,9e-07,94127.0,94123.0,0.0017114]
[1732126268151,0.0797,94126.0,94123.0,0.0017114]
[1732126268388,0.01981048,94126.0,94123.0,0.0017114]
[1732126268847,0.01981048,94125.0,94123.0,0.0017114]
[1732126269080,0.01980874,94124.0,94123.0,0.0017114]
[1732126269522,9e-07,94127.0,94123.0,0.0017114]
[1732126269742,0.01980788,94126.0,94123.0,0.0017114]
[1732126269971,0.01980788,94125.0,94123.0,0.0017114]
[1732126270210,9e-07,94127.0,94123.0,0.0017114]
[1732126270211,0.01980788,94124.0,94123.0,0.0017114]
[1732126271190,0.05150082,94124.0,94123.0,0.0017114]
[1732126271400,0.051502,94124.0,94123.0,0.0017114]
[1732126272076,0.1465775,94124.0,94123.0,0.0017114]
[1732126272320,0.051502,94124.0,94123.0,0.0017114]
[1732126272835,0.06793372,94124.0,94123.0,0.0017114]
[1732126273066,0.08118863,94124.0,94123.0,0.0017114]
[1732126274274,0.22381307,94124.0,94123.0,0.0017114]
[1732126274483,0.08118863,94124.0,94123.0,0.0017114]
[1732126274699,0.22381307,94124.0,94123.0,0.0017114]
[1732126274954,0.21056538,94124.0,94123.0,0.0017114]
[1732126275188,0.08119607,94124.0,94123.0,0.0017114]
[1732126277012,0.11562849,94124.0,94123.0,0.0017114]
[1732126277261,0.33093563,94124.0,94123.0,0.0017114]
[1732126277503,1.18051051,94124.0,94123.0,0.0017114]
[1732126277751,0.1,94123.0,94103.0,0.0017118]
[1732126277985,0.09506483,94112.0,94103.0,0.0017118]
[1732126278196,0.0514988,94111.0,94103.0,0.0017118]
[1732126278431,0.06475561,94110.0,94104.0,0.00189026]
[1732126278668,0.0514988,94109.0,94104.0,0.00189026]
[1732126278887,0.0514988,94108.0,94104.0,0.00189026]
[1732126279107,0.01980723,94107.0,94104.0,0.00189026]
[1732126279330,0.01980723,94106.0,94105.0,0.00184883]
[1732126279564,0.03167981,94118.0,94111.0,0.00184883]
[1732126279793,0.05147937,94117.0,94111.0,0.10711512]
[1732126280035,0.01979956,94116.0,94111.0,0.10711512]
[1732126280329,0.01979956,94115.0,94112.0,0.00186869]
[1732126280587,0.01979956,94114.0,94112.0,0.00186869]
[1732126280810,0.05147984,94113.0,94112.0,0.00186869]
[1732126281039,0.05147984,94113.0,94103.0,0.0017118]
[1732126281280,0.0316799,94126.0,94103.0,0.0017118]
[1732126281281,0.05147984,94112.0,94104.0,0.11711512]
[1732126281508,0.17427816,94126.0,94104.0,0.11711512]
[1732126281509,0.01979994,94111.0,94106.0,0.01]
[1732126281722,0.01979994,94110.0,94107.0,0.10711512]
[1732126281976,0.01325468,94126.0,94107.0,0.10711512]
[1732126282187,0.05148206,94125.0,94107.0,0.10711512]
[1732126282407,0.05148206,94124.0,94115.0,0.00184883]
[1732126282651,0.05148206,94123.0,94112.0,0.00184883]
[1732126282867,0.05148206,94122.0,94112.0,0.00184883]
[1732126283101,0.05148206,94121.0,94112.0,0.00184883]
[1732126283348,0.05148206,94120.0,94112.0,0.00184883]
[1732126283531,0.05148206,94119.0,94112.0,0.00184883]
[1732126283766,0.01980079,94118.0,94112.0,0.00184883]
[1732126284026,0.05150517,94117.0,94107.0,0.10711512]
[1732126284235,0.01647125,94127.0,94112.0,0.00184883]
[1732126284236,0.01980968,94116.0,94112.0,0.00184883]
[1732126284494,0.01980968,94115.0,94111.0,0.00184883]
[1732126284762,0.01325486,94126.0,94103.0,0.0017118]
[1732126284763,0.01980968,94114.0,94103.0,0.0017118]
[1732126285017,0.11000176,94113.0,94112.0,0.0017114]
[1732126285238,0.12325662,94113.0,94112.0,0.0017114]
[1732126285457,0.1430663,94113.0,94112.0,0.0017114]
[1732126285701,0.12981144,94113.0,94112.0,0.0017114]
[1732126285937,0.14306748,94113.0,94112.0,0.0017114]
[1732126287093,0.29036748,94113.0,94112.0,0.0017114]
[1732126287323,0.38540165,94113.0,94112.0,0.0017114]
[1732126287547,0.38540037,94113.0,94112.0,0.0017114]
[1732126288048,0.29037602,94113.0,94112.0,0.0017114]
[1732126288290,0.08198752,94113.0,94112.0,0.0017114]
[1732126288950,0.06873064,94113.0,94112.0,0.0017114]
[1732126290092,0.01981505,94113.0,94112.0,0.11067535]
[1732126290533,0.0008557,94124.0,94112.0,0.13250244]
[1732126290753,0.01982226,94123.0,94122.0,0.00184883]
[1732126291001,0.01982226,94123.0,94122.0,0.10896395]
[1732126291213,0.01982226,94123.0,94122.0,0.11078029]
[1732126292812,0.01982226,94123.0,94122.0,0.23078029]
[1732126293073,0.0008557,94124.0,94123.0,0.01184883]
[1732126293268,7e-07,94124.0,94123.0,0.22896395]
[1732126293703,7e-07,94124.0,94123.0,0.23076791]
[1732126294626,7e-07,94124.0,94123.0,0.22076791]
[1732126296213,7e-07,94124.0,94123.0,0.21891908]
[1732126296434,7e-07,94124.0,94123.0,0.22076791]
[1732126298234,7e-07,94124.0,94123.0,0.21891908]
[1732126298460,7e-07,94124.0,94123.0,0.22076791]
[1732126298684,7e-07,94124.0,94123.0,0.21891908]
[1732126298927,7e-07,94124.0,94123.0,0.22076791]
[1732126299151,7e-07,94124.0,94123.0,0.01365279]
[1732126299350,7e-07,94124.0,94123.0,0.12076791]
[1732126299570,7e-07,94124.0,94123.0,0.23076791]
[1732126300251,7e-07,94124.0,94123.0,0.31141908]
[1732126300476,7e-07,94124.0,94123.0,0.31326791]
[1732126302313,7e-07,94124.0,94123.0,0.33040407]
[1732126303009,7e-07,94124.0,94123.0,0.31326791]
[1732126304134,7e-07,94124.0,94123.0,0.31141908]
[1732126304589,7e-07,94124.0,94123.0,0.33626791]
[1732126304811,7e-07,94124.0,94123.0,0.37302768]
[1732126305028,7e-07,94124.0,94123.0,0.41912768]
[1732126308914,7e-07,94124.0,94123.0,0.38612768]
[1732126309892,7e-07,94124.0,94123.0,0.40912768]
[1732126310107,7e-07,94124.0,94123.0,0.41727885]
[1732126310341,7e-07,94124.0,94123.0,0.41912768]
[1732126310806,7e-07,94124.0,94123.0,0.42112768]
[1732126311035,9e-07,94127.0,94123.0,0.42112768]
[1732126311036,9e-07,94127.0,94126.0,0.24994883]
[1732126311287,9e-07,94127.0,94126.0,0.35706395]
[1732126311499,9e-07,94127.0,94126.0,0.35864189]
[1732126312169,9e-07,94127.0,94126.0,0.40484189]
[1732126312438,0.0008548,94162.0,94157.0,0.02184883]
[1732126312619,5e-07,94162.0,94161.0,0.02184883]
[1732126312839,5e-07,94162.0,94161.0,0.22896395]
[1732126313050,5e-07,94162.0,94161.0,0.23053759]
[1732126313275,5e-07,94162.0,94161.0,0.25353759]
[1732126314629,5e-07,94162.0,94161.0,0.23053759]
[1732126315541,5e-07,94162.0,94161.0,0.11053759]
[1732126315990,5e-07,94162.0,94161.0,0.00157364]
[1732126316661,5e-07,94162.0,94152.0,0.01184883]
[1732126316870,0.0807,94161.0,94149.0,0.00184883]
[1732126317080,0.0807,94161.0,94139.0,0.00184883]
[1732126317302,0.15551512,94160.0,94153.0,0.0015698]
[1732126317735,0.01949437,94159.0,94153.0,0.0015698]
[1732126317976,0.15551512,94160.0,94153.0,0.0015698]
[1732126317977,0.0462,94156.0,94153.0,0.0015698]
[1732126318188,0.181908,94154.0,94153.0,0.0015698]
[1732126318401,0.106213,94151.0,94117.0,0.00184883]
[1732126318649,0.0758,94149.0,94117.0,0.00184883]
[1732126318917,0.0758,94149.0,94123.0,0.0017114]
[1732126318918,0.10711512,94148.0,94123.0,0.0017114]
[1732126319131,0.13867327,94148.0,94123.0,0.0017114]
[1732126320672,0.03155815,94147.0,94123.0,0.0017114]
[1732126320891,0.13867327,94147.0,94123.0,0.0017114]
[1732126321134,0.10711512,94147.0,94123.0,0.0017114]
[1732126321368,0.13867327,94147.0,94123.0,0.0017114]
[1732126321620,0.0758,94149.0,94123.0,0.0017114]
[1732126321621,0.03155815,94148.0,94124.0,0.10711512]
[1732126321830,0.14083177,94156.0,94139.0,0.00184883]
[1732126321831,0.07775815,94156.0,94139.0,0.00184883]
[1732126322080,0.0462,94156.0,94134.0,0.01]
[1732126322311,0.06293852,94156.0,94135.0,0.10711512]
[1732126322799,0.06293852,94156.0,94136.0,0.00145845]
[1732126323035,0.06293852,94156.0,94137.0,0.10711512]
[1732126323254,0.06293852,94156.0,94139.0,0.00184883]
[1732126323471,0.01673852,94156.0,94139.0,0.00184883]
[1732126323694,0.01673852,94156.0,94141.0,0.01]
[1732126323917,5e-07,94162.0,94141.0,0.11711512]
[1732126324129,5e-07,94162.0,94146.0,0.00184883]
[1732126324368,5e-07,94162.0,94148.0,0.00184883]
[1732126324843,5e-07,94162.0,94147.0,0.00143923]
[1732126325064,5e-07,94162.0,94149.0,0.0014379]
[1732126325324,0.01640294,94162.0,94148.0,0.00143856]
[1732126325570,0.01640294,94162.0,94145.0,0.01]
[1732126325802,5e-07,94162.0,94149.0,0.0014379]
[1732126326022,5e-07,94162.0,94145.0,0.01]
[1732126326023,5e-07,94162.0,94146.0,0.00143989]
[1732126326261,5e-07,94162.0,94145.0,0.01]
[1732126326748,5e-07,94162.0,94146.0,0.00143989]
[1732126327626,0.08,94160.0,94146.0,0.00143989]
[1732126327874,0.106209,94154.0,94146.0,0.00143989]
[1732126328096,0.13875938,94153.0,94122.0,0.0117114]
[1732126328319,0.09463177,94155.0,94127.0,0.00184883]
[1732126328320,0.03165163,94152.0,94127.0,0.00184883]
[1732126328539,0.10711512,94151.0,94123.0,0.0017114]
[1732126328806,0.10711512,94151.0,94128.0,0.00142287]
[1732126329246,0.03165163,94153.0,94123.0,0.0017114]
[1732126329247,0.03165163,94152.0,94123.0,0.0117114]
[1732126329459,0.19463177,94154.0,94124.0,0.10711512]
[1732126329460,0.09463177,94153.0,94124.0,0.10711512]
[1732126329699,0.01977919,94152.0,94131.0,0.01]
[1732126329926,0.01977919,94151.0,94131.0,0.11711512]
[1732126330180,0.01477919,94150.0,94132.0,0.11711512]
[1732126330431,0.08,94158.0,94132.0,0.11711512]
[1732126330432,0.08,94158.0,94133.0,0.01]
[1732126330670,5e-07,94162.0,94137.0,0.01]
[1732126330880,5e-07,94162.0,94137.0,0.11711512]
[1732126331104,5e-07,94162.0,94138.0,0.00141582]
[1732126331531,5e-07,94162.0,94146.0,0.01]
[1732126331777,5e-07,94162.0,94147.0,0.00184883]
[1732126331993,0.01697091,94162.0,94147.0,0.00184883]
[1732126332485,5e-07,94162.0,94139.0,0.10711512]
[1732126332740,5e-07,94162.0,94146.0,0.01]
[1732126332986,5e-07,94162.0,94144.0,0.01]
[1732126333232,5e-07,94162.0,94146.0,0.01]
[1732126333449,5e-07,94162.0,94145.0,0.00141117]
[1732126333662,5e-07,94162.0,94145.0,0.01141117]
[1732126333882,5e-07,94162.0,94145.0,0.00141117]
[1732126334107,5e-07,94162.0,94138.0,0.01]
[1732126334342,5e-07,94162.0,94141.0,0.01]
[1732126334575,0.023,94157.0,94136.0,0.0017108]
[1732126334842,0.27063177,94158.0,94136.0,0.0017108]
[1732126334843,0.20174689,94156.0,94136.0,0.0017108]
[1732126335085,0.09463177,94147.0,94136.0,0.0017108]
[1732126335301,0.09463177,94148.0,94136.0,0.0017108]
[1732126335745,0.09463177,94146.0,94136.0,0.0017108]
[1732126336199,0.09463177,94152.0,94136.0,0.0017108]
[1732126337093,0.09463177,94149.0,94136.0,0.0017108]
[1732126337995,0.09463177,94148.0,94136.0,0.0017108]
[1732126338470,0.09463177,94149.0,94136.0,0.0017108]
[1732126338956,0.25334019,94156.0,94136.0,0.0017108]
[1732126338957,0.09463177,94156.0,94141.0,0.01]
[1732126339187,0.09463177,94157.0,94142.0,0.10711512]
[1732126339417,0.09463177,94159.0,94142.0,0.10845242]
[1732126339633,0.09463177,94158.0,94142.0,0.10711512]
[1732126339848,0.09463177,94158.0,94142.0,0.11711512]
[1732126340053,0.09463177,94158.0,94147.0,0.00184883]
[1732126340283,0.11116067,94159.0,94144.0,0.00184883]
[1732126340733,0.09498877,94158.0,94148.0,0.00132802]
[1732126340967,0.14248316,94161.0,94136.0,0.0017108]
[1732126340968,0.09498877,94156.0,94136.0,0.0017108]
[1732126341197,0.09498877,94153.0,94149.0,0.00132736]
[1732126341424,0.09498877,94154.0,94136.0,0.0017108]
[1732126341648,0.09498877,94149.0,94136.0,0.0017108]
[1732126341868,0.14248316,94151.0,94136.0,0.0017108]
[1732126341869,0.09498877,94148.0,94136.0,0.0017108]
[1732126342109,0.17098877,94147.0,94136.0,0.0017108]
[1732126342558,0.10711512,94146.0,94136.0,0.0017108]
[1732126342813,0.09498877,94145.0,94136.0,0.0017108]
[1732126343007,0.10711512,94145.0,94136.0,0.0017108]
[1732126343219,0.20210389,94145.0,94136.0,0.0017108]
[1732126343482,0.09498877,94143.0,94136.0,0.0017108]
[1732126343721,0.20210389,94145.0,94136.0,0.0017108]
[1732126343948,0.14669602,94145.0,94136.0,0.0017108]
[1732126344186,0.12690557,94145.0,94136.0,0.0017108]
[1732126344427,0.01979045,94144.0,94136.0,0.0017108]
[1732126344653,0.12690557,94145.0,94136.0,0.0017108]
[1732126344654,0.01979045,94143.0,94136.0,0.0017108]
[1732126345100,0.12690557,94145.0,94136.0,0.0017108]
[1732126346526,0.22189434,94145.0,94136.0,0.0017108]
[1732126346765,0.09498877,94143.0,94136.0,0.0017108]
[1732126346999,0.106228,94137.0,94136.0,0.0017108]
[1732126347214,0.24507189,94137.0,94136.0,0.0017108]
[1732126347647,0.106229,94136.0,94123.0,0.0017114]
[1732126347878,0.09496623,94132.0,94123.0,0.0017114]
[1732126348104,0.23381012,94131.0,94123.0,0.0017114]
[1732126348359,0.10722877,94130.0,94123.0,0.0017114]
[1732126348597,0.03172877,94129.0,94123.0,0.0017114]
[1732126348811,0.0168406,94131.0,94123.0,0.0117114]
[1732126349031,0.0168406,94131.0,94127.0,0.01]
[1732126349242,0.0168406,94131.0,94124.0,0.1083968]
[1732126349243,0.01651457,94137.0,94133.0,0.01]
[1732126349465,0.23304652,94150.0,94133.0,0.01]
[1732126349466,0.23128986,94150.0,94133.0,0.01]
[1732126349705,0.23128986,94150.0,94123.0,0.0017114]
[1732126349706,0.10711512,94149.0,94123.0,0.0017114]
[1732126349950,0.10711512,94149.0,94134.0,0.00128832]
[1732126350187,0.15323939,94150.0,94124.0,0.01]
[1732126350414,0.10711512,94149.0,94123.0,0.0017114]
[1732126351992,0.10711512,94148.0,94123.0,0.0017114]
[1732126352219,0.21333012,94148.0,94123.0,0.0017114]
[1732126352434,0.09493922,94144.0,94123.0,0.0017114]
[1732126352654,0.1,94142.0,94123.0,0.0017114]
[1732126352871,0.20711512,94142.0,94123.0,0.0017114]
[1732126353116,0.1,94142.0,94123.0,0.0017114]
[1732126353780,0.09493922,94146.0,94123.0,0.0017114]
[1732126354009,0.1,94145.0,94123.0,0.0017114]
[1732126355346,0.01689605,94150.0,94123.0,0.0017114]
[1732126355347,0.01775155,94150.0,94124.0,0.10711512]
[1732126355568,0.01775155,94150.0,94134.0,0.0895]
[1732126355797,0.0008555,94150.0,94134.0,0.0895]
[1732126356086,0.0008555,94150.0,94140.0,0.01]
[1732126356306,0.0008555,94150.0,94134.0,0.01]
[1732126356577,0.0008555,94150.0,94139.0,0.01]
[1732126356753,0.0008555,94150.0,94128.0,0.02]
[1732126356938,0.0008555,94150.0,94129.0,0.01]
[1732126357376,0.0008555,94150.0,94126.0,0.10711512]
[1732126357589,0.18691512,94149.0,94122.0,0.0017114]
[1732126357810,0.1,94148.0,94122.0,0.0017114]
[1732126358021,0.09493922,94145.0,94122.0,0.0017114]
[1732126358238,0.09493922,94138.0,94122.0,0.0017114]
[1732126358443,0.20205434,94137.0,94122.0,0.0017114]
[1732126358685,0.09493922,94135.0,94122.0,0.0017114]
[1732126358945,0.19496893,94133.0,94122.0,0.0017114]
[1732126359165,0.30208405,94132.0,94122.0,0.0017114]
[1732126359383,0.1,94130.0,94122.0,0.0017114]
[1732126359615,0.09496893,94125.0,94122.0,0.0017114]
[1732126359833,0.09496893,94125.0,94112.0,0.0017114]
[1732126359834,0.1,94123.0,94112.0,0.0017114]
[1732126360050,0.09502091,94116.0,94112.0,0.0017114]
[1732126360277,0.09502091,94114.0,94112.0,0.0017114]
[1732126360507,0.03172415,94113.0,94112.0,0.0017114]
[1732126361173,0.17425552,94113.0,94112.0,0.0017114]
[1732126361658,0.19004183,94115.0,94112.0,0.0017114]
[1732126361659,0.03172415,94114.0,94112.0,0.0017114]
[1732126361871,0.03172415,94113.0,94112.0,0.0017114]
[1732126362087,0.13883927,94113.0,94112.0,0.0017114]
[1732126362342,0.03172415,94113.0,94112.0,0.0017114]
[1732126362833,0.01657957,94115.0,94112.0,0.0017114]
[1732126364289,0.01657957,94115.0,94113.0,0.01184883]
[1732126364509,0.09499423,94139.0,94131.0,0.01]
[1732126364741,0.03167523,94146.0,94139.0,0.01]
[1732126364956,0.03167523,94148.0,94139.0,0.01]
[1732126365369,0.017417,94150.0,94139.0,0.01]
[1732126365370,0.03167523,94147.0,94139.0,0.01]
[1732126365625,0.03167523,94149.0,94132.0,0.01]
[1732126365863,0.03167523,94149.0,94134.0,0.01]
[1732126366107,0.03253073,94150.0,94132.0,0.01]
[1732126366344,0.03167523,94149.0,94128.0,0.01]
[1732126366567,0.03167523,94148.0,94128.0,0.01]
[1732126366778,0.03167523,94148.0,94136.0,0.01]
[1732126366992,0.0008555,94150.0,94136.0,0.01]
[1732126367231,0.0008555,94150.0,94136.0,0.01184883]
[1732126367472,0.0008555,94150.0,94136.0,0.01]
[1732126367718,0.09585945,94150.0,94136.0,0.01]
[1732126367931,0.0008555,94150.0,94136.0,0.01]
[1732126368596,0.0008555,94150.0,94140.0,0.01]
[1732126369050,0.0008555,94150.0,94136.0,0.15511512]
[1732126369051,0.0008555,94150.0,94142.0,0.01]
[1732126369270,0.0008555,94150.0,94140.0,0.01]
[1732126369516,0.0008555,94150.0,94142.0,0.01]
[1732126370921,0.0008555,94150.0,94136.0,0.048]
[1732126371388,0.0008555,94150.0,94132.0,0.00355983]
[1732126371389,0.10797062,94150.0,94132.0,0.001711]
[1732126371635,0.10797062,94150.0,94135.0,0.01]
[1732126371636,0.0008555,94150.0,94135.0,0.01]
[1732126373207,0.0008555,94150.0,94139.0,0.01]
[1732126374571,0.0008555,94150.0,94130.0,0.00184883]
[1732126374572,0.0008555,94150.0,94125.0,1.92196872]
[1732126374791,0.0008555,94150.0,94126.0,0.10711512]
[1732126375006,0.10797062,94150.0,94125.0,1.92196872]
[1732126375928,0.13429958,94149.0,94125.0,1.92196872]
[1732126376182,0.01,94136.0,94125.0,1.92196872]
[1732126376401,0.10711512,94135.0,94125.0,1.92196872]
[1732126378213,0.01,94142.0,94125.0,1.92196872]
[1732126378426,0.077,94148.0,94125.0,1.92196872]
[1732126378427,0.09502392,94145.0,94125.0,1.92196872]
[1732126378644,0.09502392,94148.0,94125.0,1.92196872]
[1732126378862,0.01721535,94148.0,94125.0,1.92196872]
[1732126379128,0.01721535,94148.0,94126.0,0.10711512]
[1732126379372,0.09502392,94153.0,94127.0,0.1259]
[1732126379632,0.01802549,94150.0,94127.0,0.23301512]
[1732126380087,0.42780434,94148.0,94127.0,0.23301512]
[1732126380723,0.42780434,94148.0,94128.0,0.10711512]
[1732126381172,0.42780434,94148.0,94127.0,0.1259]
[1732126381656,0.01,94142.0,94125.0,1.62991633]
[1732126381877,0.0824,94140.0,94125.0,1.62991633]
[1732126382100,0.01,94136.0,94125.0,1.62991633]
[1732126382314,0.11711512,94135.0,94125.0,1.62991633]
[1732126382542,0.01,94129.0,94125.0,1.62991633]
[1732126382755,0.10711512,94128.0,94125.0,1.62991633]
[1732126385591,0.01,94134.0,94125.0,1.62991633]
[1732126385826,0.10711512,94133.0,94125.0,1.62991633]
[1732126386694,0.02390247,94132.0,94125.0,1.62991633]
[1732126386944,0.01,94134.0,94125.0,1.62991633]
[1732126386945,0.10711512,94131.0,94125.0,1.62991633]
[1732126387173,0.01688286,94135.0,94125.0,1.62991633]
[1732126387393,0.12399798,94135.0,94125.0,1.62991633]
[1732126387607,0.01,94136.0,94125.0,1.62991633]
[1732126388282,0.02683917,94136.0,94125.0,1.62991633]
[1732126388725,0.01,94136.0,94125.0,1.62991633]
[1732126389206,0.01,94126.0,94125.0,1.62991633]
[1732126389452,0.22711512,94126.0,94125.0,1.62391633]
[1732126389678,0.35635512,94126.0,94125.0,1.51853796]
[1732126389892,0.98438082,94126.0,94125.0,1.49353941]
[1732126390162,0.52,94116.0,94115.0,0.0017122]
[1732126390383,0.52,94116.0,94067.0,0.081]
[1732126390384,0.01,94094.0,94067.0,0.081]
[1732126390611,0.01,94091.0,94067.0,0.081]
[1732126390896,0.01,94091.0,94050.0,0.0017102]
[1732126390897,0.01,94080.0,94055.0,0.0775]
[1732126391150,0.11711512,94079.0,94055.0,0.0775]
[1732126392343,0.01,94079.0,94055.0,0.0775]
[1732126393064,0.02695607,94079.0,94055.0,0.0775]
[1732126395225,0.01695607,94079.0,94056.0,0.10711512]
[1732126395446,0.01695607,94079.0,94057.0,0.10106301]
[1732126395667,0.01,94096.0,94058.0,0.10711512]
[1732126395883,0.10711512,94095.0,94058.0,0.10711512]
[1732126396109,0.10711512,94095.0,94058.0,0.10851239]
[1732126396339,0.11982663,94095.0,94058.0,0.10851239]
[1732126396618,0.10711512,94095.0,94058.0,0.10851239]
[1732126397077,0.1,94107.0,94058.0,0.10851239]
[1732126397078,0.01,94112.0,94069.0,0.01]
[1732126397302,0.0791,94115.0,94075.0,0.0794]
[1732126397553,0.01698072,94112.0,94076.0,0.10711512]
[1732126397807,0.1252,94127.0,94087.0,0.01]
[1732126398031,0.1252,94127.0,94089.0,0.1]
[1732126398032,0.10711512,94127.0,94089.0,0.1]
[1732126398262,0.0811,94137.0,94070.0,0.002]
[1732126398263,0.0791,94137.0,94094.0,0.01]
[1732126398476,0.01,94136.0,94099.0,0.01]
[1732126398694,0.01653014,94137.0,94100.0,0.10711512]
[1732126398947,0.01,94138.0,94100.0,0.10711512]
[1732126399405,0.01,94145.0,94101.0,0.01]
[1732126399408,0.01,94145.0,94101.0,0.11]
[1732126399620,0.10711512,94144.0,94102.0,0.10711512]
[1732126399855,0.01,94141.0,94102.0,0.10711512]
[1732126400087,0.11711512,94141.0,94102.0,0.10711512]
[1732126400563,0.44512303,94148.0,94104.0,0.01]
[1732126400792,0.44512303,94148.0,94090.0,0.14429316]
[1732126400793,0.01,94129.0,94090.0,0.1278]
[1732126401006,0.10711512,94128.0,94091.0,0.10711512]
[1732126401922,0.10711512,94128.0,94092.0,0.00106264]
[1732126402138,0.01,94145.0,94102.0,0.01]
[1732126402448,0.1,94142.0,94103.0,0.11711512]
[1732126402649,0.20711512,94142.0,94103.0,0.11711512]
[1732126404489,0.20711512,94142.0,94103.0,0.10711512]
[1732126404490,0.10711512,94141.0,94103.0,0.10711512]
[1732126404937,0.1,94147.0,94106.0,0.0462]
[1732126405151,0.1,94145.0,94107.0,0.10711512]
[1732126405391,0.11,94143.0,94107.0,0.10711512]
[1732126405648,0.10711512,94142.0,94107.0,0.10711512]
[1732126407292,0.01,94132.0,94106.0,0.0462]